[Event "EIWCC 2018"]
[Site "Vysoke Tatry"]
[Date "2018.04.10"]
[Round "3"]
[White "Okuyaz, Duru"]
[Black "Koloditsova, Renata"]
[Result "1-0"]
[ECO "C16"]
[WhiteElo "2122"]
[BlackElo "1978"]
[Annotator "NA"]
[PlyCount "81"]
[EventDate "2018.??.??"]
[EventType "swiss"]
[EventCountry "SVK"]
[SourceTitle "playchess.com"]
[Source "ChessBase"]
[SourceQuality "1"]
[TimeControl "40/5400+30:1800+30"]

1. e4 {[%emt 0:00:00]} e6 {[%emt 0:00:07]} 2. d4 {[%emt 0:00:00]} d5 {[%emt 0:00:11]} 3. Nc3 {[%emt 0:00:00]} Bb4 {[%emt 0:00:23]} 4. e5 {[%emt 0:00:00]} Bxc3+ {[%emt 0:00:17]} 5. bxc3 {[%emt 0:00:09]} c5 {[%emt 0:00:53]} 6. Qg4 {[%emt 0:01:22]} Ne7 {[%emt 0:01:00]} 7. Qxg7 {[%emt 0:09:12]} Rg8 {[%emt 0:00:08]} 8. Qxh7 {[%emt 0:00:12]} Qa5 {[%emt 0:04:02]} 9. Bd2 {[%emt 0:03:07]} Nbc6 {[%emt 0:04:28]} 10. a4 {[%emt 0:05:48]} Qb6 {[%emt 0:02:16]} 11. dxc5 {[%emt 0:15:04]} Qb2 {[%emt 0:03:22]} 12. Rc1 {[%emt 0:08:59]} Nxe5 {[%emt 0:01:45]} 13. f4 {[%emt 0:05:54]} Nd7 {[%emt 0:08:17]} 14. Nf3 {[%emt 0:05:25]} Nf6 {[%emt 0:15:20]} 15. Bb5+ {[%emt 0:07:48]} Bd7 {[%emt 0:08:10]} 16. Bxd7+ {[%emt 0:02:33]} Nxd7 {[%emt 0:00:09]} 17. Ng5 {[%emt 0:01:35]} Rf8 {[%emt 0:01:35]} 18. Qh5 {[%emt 0:03:46]} Nf6 {[%emt 0:06:35]} 19. Qe2 {[%emt 0:00:35]} Rc8 {[%emt 0:11:52]} 20. O-O {[%emt 0:03:28]} Rc7 {[%emt 0:02:49]} 21. Qd3 {[%emt 0:01:40]} Qa3 {[%emt 0:01:28]} 22. Qb5+ {[%emt 0:03:05]} Kd8 {[%emt 0:00:42]} 23. Qb4 {[%emt 0:00:40]} Qa2 {[%emt 0:01:22]} 24. Qb3 {[%emt 0:02:50]} Qxb3 {[%emt 0:01:02]} 25. cxb3 {[%emt 0:00:06]} Rxc5 {[%emt 0:09:25]} 26. Be3 {[%emt 0:01:39]} Rc6 {[%emt 0:00:37]} 27. Bxa7 {[%emt 0:05:26]} b6 {[%emt 0:00:53]} 28. a5 {[%emt 0:00:05]} Nc8 {[%emt 0:00:46]} 29. Bxb6+ {[%emt 0:00:49]} Nxb6 {[%emt 0:00:09]} 30. axb6 {[%emt 0:00:05]} Rxb6 {[%emt 0:00:04]} 31. b4 {[%emt 0:00:45]} Ke7 {[%emt 0:00:42]} 32. Ra1 {[%emt 0:01:17]} Rb7 {[%emt 0:00:15]} 33. Ra3 {[%emt 0:00:26]} Rc8 {[%emt 0:00:23]} 34. Rfa1 {[%emt 0:00:32]} Nd7 {[%emt 0:00:36]} 35. Nf3 {[%emt 0:00:58]} Rbc7 {[%emt 0:00:49]} 36. Rc1 {[%emt 0:00:58]} Rc4 {[%emt 0:00:33]} 37. Ra7 {[%emt 0:00:36]} f6 {[%emt 0:07:01]} 38. b5 {[%emt 0:02:35]} d4 {[%emt 0:01:00]} 39. Rd1 {[%emt 0:01:34]} Rxc3 {[%emt 0:07:55]} 40. Nxd4 {[%emt 0:00:00]} Rc1 {[%emt 0:00:35]} 41. Nc6+ {[%emt 0:00:52]} 1-0

[Event "EIWCC 2018"]
[Site "Vysoke Tatry"]
[Date "2018.04.10"]
[Round "3"]
[White "Sucikova, Svetlana"]
[Black "Koubova, Anna Marie"]
[Result "1-0"]
[ECO "A04"]
[WhiteElo "2107"]
[BlackElo "1819"]
[Annotator "NA"]
[PlyCount "77"]
[EventDate "2018.??.??"]
[EventType "swiss"]
[EventCountry "SVK"]
[SourceTitle "playchess.com"]
[Source "ChessBase"]
[SourceQuality "1"]
[TimeControl "40/5400+30:1800+30"]

1. Nf3 {[%emt 0:00:00]} c5 {[%emt 0:00:11]} 2. c4 {[%emt 0:00:00]} Nf6 {[%emt 0:00:26]} 3. Nc3 {[%emt 0:00:20]} g6 {[%emt 0:00:53]} 4. g3 {[%emt 0:01:18]} Bg7 {[%emt 0:00:31]} 5. Bg2 {[%emt 0:00:13]} O-O {[%emt 0:00:26]} 6. d3 {[%emt 0:04:25]} d5 {[%emt 0:05:28]} 7. cxd5 {[%emt 0:01:35]} Nxd5 {[%emt 0:00:08]} 8. Ne4 {[%emt 0:02:11]} e5 {[%emt 0:12:50]} 9. Bg5 {[%emt 0:03:10]} f6 {[%emt 0:07:20]} 10. Bd2 {[%emt 0:00:08]} Qe7 {[%emt 0:07:10]} 11. Qc1 {[%emt 0:02:40]} Na6 {[%emt 0:02:57]} 12. h4 {[%emt 0:06:37]} Re8 {[%emt 0:02:41]} 13. h5 {[%emt 0:02:05]} g5 {[%emt 0:01:58]} 14. h6 {[%emt 0:04:16]} Bf8 {[%emt 0:02:23]} 15. Nfxg5 {[%emt 0:10:52]} fxg5 {[%emt 0:01:42]} 16. Bxg5 {[%emt 0:00:06]} Qf7 {[%emt 0:07:08]} 17. Bf3 {[%emt 0:01:42]} Bf5 {[%emt 0:08:59]} 18. Qc4 {[%emt 0:00:59]} Nac7 {[%emt 0:13:53]} 19. Bh5 {[%emt 0:19:19]} Bg6 {[%emt 0:00:27]} 20. Bxg6 {[%emt 0:00:07]} hxg6 {[%emt 0:02:17]} 21. a4 {[%emt 0:13:30]} Be7 {[%emt 0:04:31]} 22. Bd2 {[%emt 0:03:52]} Qe6 {[%emt 0:05:28]} 23. Nxc5 {[%emt 0:02:00]} Bxc5 {[%emt 0:01:19]} 24. Qxc5 {[%emt 0:00:03]} Qc6 {[%emt 0:01:22]} 25. Rc1 {[%emt 0:02:28]} Qxc5 {[%emt 0:00:50]} 26. Rxc5 {[%emt 0:00:02]} b6 {[%emt 0:02:27]} 27. Rc4 {[%emt 0:00:58]} Rac8 {[%emt 0:01:59]} 28. e4 {[%emt 0:02:11]} Nf6 {[%emt 0:01:03]} 29. f4 {[%emt 0:00:14]} exf4 {[%emt 0:01:27]} 30. gxf4 {[%emt 0:00:08]} Ne6 {[%emt 0:00:28]} 31. Rxc8 {[%emt 0:01:24]} Rxc8 {[%emt 0:00:04]} 32. Rg1 {[%emt 0:01:45]} Kh7 {[%emt 0:03:51]} 33. f5 {[%emt 0:00:07]} Nf8 {[%emt 0:00:09]} 34. e5 {[%emt 0:01:27]} Nd5 {[%emt 0:00:28]} 35. Kd1 {[%emt 0:02:31]} Rc7 {[%emt 0:00:34]} 36. fxg6+ {[%emt 0:01:39]} Nxg6 {[%emt 0:00:08]} 37. Rg5 {[%emt 0:00:21]} Kxh6 {[%emt 0:01:39]} 38. e6 {[%emt 0:00:16]} Ngf4 {[%emt 0:00:46]} 39. Rxd5 {[%emt 0:00:26]} 1-0

[Event "EIWCC 2018"]
[Site "Vysoke Tatry"]
[Date "2018.04.10"]
[Round "3"]
[White "Hapala, Elisabeth"]
[Black "Kursova, Maria"]
[Result "1/2-1/2"]
[ECO "B48"]
[WhiteElo "2091"]
[BlackElo "2278"]
[Annotator "NA"]
[PlyCount "77"]
[EventDate "2018.??.??"]
[EventType "swiss"]
[EventCountry "SVK"]
[SourceTitle "playchess.com"]
[Source "ChessBase"]
[SourceQuality "1"]
[TimeControl "40/5400+30:1800+30"]

1. e4 {[%emt 0:00:00]} c5 {[%emt 0:00:05]} 2. Nf3 {[%emt 0:00:00]} e6 {[%emt 0:00:07]} 3. d4 {[%emt 0:00:00]} cxd4 {[%emt 0:00:05]} 4. Nxd4 {[%emt 0:00:00]} Nc6 {[%emt 0:00:06]} 5. Nc3 {[%emt 0:00:00]} Qc7 {[%emt 0:00:21]} 6. Be3 {[%emt 0:00:00]} a6 {[%emt 0:00:18]} 7. Qf3 {[%emt 0:00:18]} Bd6 {[%emt 0:01:34]} 8. O-O-O {[%emt 0:00:33]} Be5 {[%emt 0:00:13]} 9. g3 {[%emt 0:00:27]} Nge7 {[%emt 0:05:09]} 10. Qe2 {[%emt 0:00:20]} O-O {[%emt 0:15:40]} 11. f4 {[%emt 0:00:21]} Bxd4 {[%emt 0:00:13]} 12. Bxd4 {[%emt 0:00:06]} Nxd4 {[%emt 0:00:10]} 13. Rxd4 {[%emt 0:00:05]} b5 {[%emt 0:00:20]} 14. Bg2 {[%emt 0:14:30]} Bb7 {[%emt 0:02:10]} 15. Rhd1 {[%emt 0:06:27]} Rfd8 {[%emt 0:05:44]} 16. Qd2 {[%emt 0:07:15]} Bc6 {[%emt 0:05:36]} 17. e5 {[%emt 0:11:01]} Bxg2 {[%emt 0:07:50]} 18. Qxg2 {[%emt 0:00:30]} Rab8 {[%emt 0:05:37]} 19. Qd2 {[%emt 0:21:36]} Rb7 {[%emt 0:09:06]} 20. Ne4 {[%emt 0:01:11]} Qc6 {[%emt 0:02:06]} 21. g4 {[%emt 0:09:46]} Rc7 {[%emt 0:02:05]} 22. Kb1 {[%emt 0:00:24]} a5 {[%emt 0:12:41]} 23. Qd3 {[%emt 0:09:35]} Nd5 {[%emt 0:03:34]} 24. Rc1 {[%emt 0:09:33]} Nxf4 {[%emt 0:15:52]} 25. Nf6+ {[%emt 0:00:24]} gxf6 {[%emt 0:00:02]} 26. Rxf4 {[%emt 0:00:05]} fxe5 {[%emt 0:00:21]} 27. Rxf7 {[%emt 0:03:15]} Kxf7 {[%emt 0:01:43]} 28. Qxh7+ {[%emt 0:00:04]} Ke8 {[%emt 0:00:05]} 29. Qg6+ {[%emt 0:01:11]} Ke7 {[%emt 0:00:05]} 30. Qg5+ {[%emt 0:00:04]} Ke8 {[%emt 0:00:18]} 31. Qg6+ {[%emt 0:05:11]} Ke7 {[%emt 0:00:04]} 32. Qg5+ {[%emt 0:00:54]} Ke8 {[%emt 0:02:05]} 33. Qh5+ {[%emt 0:00:24]} Ke7 {[%emt 0:00:06]} 34. Qh4+ {[%emt 0:00:04]} Ke8 {[%emt 0:00:39]} 35. Qh5+ {[%emt 0:00:25]} Ke7 {[%emt 0:00:14]} 36. Qg5+ {[%emt 0:00:46]} Ke8 {[%emt 0:00:14]} 37. Qg6+ {[%emt 0:00:34]} Ke7 {[%emt 0:00:15]} 38. Qg5+ {[%emt 0:01:01]} Ke8 {[%emt 0:00:17]} 39. Qg6+ 1/2-1/2

[Event "EIWCC 2018"]
[Site "Vysoke Tatry"]
[Date "2018.04.10"]
[Round "3"]
[White "Kaliadzich, Maryia"]
[Black "Manakova, Maria"]
[Result "1/2-1/2"]
[ECO "A48"]
[WhiteElo "2078"]
[BlackElo "2268"]
[Annotator "NA"]
[PlyCount "95"]
[EventDate "2018.??.??"]
[EventType "swiss"]
[EventCountry "SVK"]
[SourceTitle "playchess.com"]
[Source "ChessBase"]
[SourceQuality "1"]
[TimeControl "40/5400+30:1800+30"]

1. d4 {[%emt 0:00:00]} Nf6 {[%emt 0:00:10]} 2. Nf3 {[%emt 0:00:00]} g6 {[%emt 0:00:24]} 3. Bf4 {[%emt 0:00:00]} Bg7 {[%emt 0:00:06]} 4. e3 {[%emt 0:00:00]} O-O {[%emt 0:01:13]} 5. Be2 {[%emt 0:00:13]} c5 {[%emt 0:00:46]} 6. c3 {[%emt 0:00:12]} d5 {[%emt 0:01:15]} 7. Nbd2 {[%emt 0:01:29]} b6 {[%emt 0:00:31]} 8. Ne5 {[%emt 0:03:42]} Bb7 {[%emt 0:00:38]} 9. O-O {[%emt 0:00:43]} Nbd7 {[%emt 0:00:40]} 10. h4 {[%emt 0:12:28]} a6 {[%emt 0:15:15]} 11. a4 {[%emt 0:01:39]} Rc8 {[%emt 0:03:41]} 12. Re1 {[%emt 0:08:16]} Ne8 {[%emt 0:01:04]} 13. Bg4 {[%emt 0:07:30]} f5 {[%emt 0:08:53]} 14. Nxd7 {[%emt 0:11:59]} Qxd7 {[%emt 0:00:20]} 15. Be2 {[%emt 0:03:52]} Nd6 {[%emt 0:02:44]} 16. Nf3 {[%emt 0:01:55]} Nf7 {[%emt 0:00:30]} 17. Qb3 {[%emt 0:06:49]} Qc6 {[%emt 0:05:07]} 18. Rad1 {[%emt 0:02:44]} c4 {[%emt 0:01:00]} 19. Qc2 {[%emt 0:00:31]} Qe6 {[%emt 0:07:45]} 20. Rb1 {[%emt 0:04:02]} h6 {[%emt 0:04:20]} 21. b3 {[%emt 0:03:38]} Bf6 {[%emt 0:01:31]} 22. bxc4 {[%emt 0:06:46]} dxc4 {[%emt 0:00:28]} 23. Rb4 {[%emt 0:00:19]} g5 {[%emt 0:11:01]} 24. hxg5 {[%emt 0:01:11]} hxg5 {[%emt 0:00:05]} 25. Bh2 {[%emt 0:02:13]} Bd5 {[%emt 0:22:34]} 26. Qb2 {[%emt 0:03:38]} Rc6 {[%emt 0:00:06]} 27. Nd2 {[%emt 0:01:05]} Kg7 {[%emt 0:01:08]} 28. Bf3 {[%emt 0:05:43]} Bxf3 {[%emt 0:02:36]} 29. Nxf3 {[%emt 0:00:04]} g4 {[%emt 0:03:07]} 30. Nd2 {[%emt 0:00:26]} Rh8 {[%emt 0:00:50]} 31. Nf1 {[%emt 0:02:27]} Bg5 {[%emt 0:00:12]} 32. Rb1 {[%emt 0:05:39]} Qh6 {[%emt 0:03:17]} 33. Rxb6 {[%emt 0:00:08]} g3 {[%emt 0:00:10]} 34. fxg3 {[%emt 0:00:07]} Bxe3+ {[%emt 0:00:08]} 35. Kh1 {[%emt 0:00:30]} Rxb6 {[%emt 0:01:18]} 36. Qxb6 {[%emt 0:00:05]} Nd6 {[%emt 0:00:11]} 37. Re1 {[%emt 0:00:32]} Bg5 {[%emt 0:00:10]} 38. Re5 {[%emt 0:02:34]} Bf6 {[%emt 0:00:17]} 39. Qc7 {[%emt 0:02:20]} Bxe5 {[%emt 0:03:16]} 40. Qxe7+ {[%emt 0:00:00]} Nf7 {[%emt 0:00:11]} 41. dxe5 {[%emt 0:00:55]} Qg5 {[%emt 0:08:05]} 42. Qc7 {[%emt 0:05:46]} Re8 {[%emt 0:08:46]} 43. g4 {[%emt 0:05:34]} fxg4 {[%emt 0:03:49]} 44. Qxc4 {[%emt 0:03:53]} Nxe5 {[%emt 0:00:57]} 45. Qxa6 {[%emt 0:03:16]} Rf8 {[%emt 0:03:56]} 46. Qb5 {[%emt 0:06:07]} Rxf1+ {[%emt 0:04:06]} 47. Qxf1 {[%emt 0:00:11]} g3 {[%emt 0:00:04]} 48. Qe1 {[%emt 0:03:24]} 1/2-1/2

[Event "EIWCC 2018"]
[Site "Vysoke Tatry"]
[Date "2018.04.10"]
[Round "3"]
[White "Azimova, Karina"]
[Black "Pavlidou, Ekaterini"]
[Result "0-1"]
[ECO "B48"]
[WhiteElo "2069"]
[BlackElo "2164"]
[Annotator "NA"]
[PlyCount "78"]
[EventDate "2018.??.??"]
[EventType "swiss"]
[EventCountry "SVK"]
[SourceTitle "playchess.com"]
[Source "ChessBase"]
[SourceQuality "1"]
[TimeControl "40/5400+30:1800+30"]

1. e4 {[%emt 0:00:00]} c5 {[%emt 0:00:33]} 2. Nc3 {[%emt 0:00:00]} Nc6 {[%emt 0:00:52]} 3. Nge2 {[%emt 0:00:00]} e6 {[%emt 0:00:59]} 4. d4 {[%emt 0:00:27]} cxd4 {[%emt 0:00:13]} 5. Nxd4 {[%emt 0:00:04]} Qc7 {[%emt 0:00:38]} 6. Be3 {[%emt 0:04:04]} a6 {[%emt 0:00:43]} 7. a3 {[%emt 0:01:21]} b5 {[%emt 0:07:11]} 8. Nxc6 {[%emt 0:01:25]} Qxc6 {[%emt 0:03:32]} 9. Bd3 {[%emt 0:07:20]} Bc5 {[%emt 0:04:05]} 10. Qg4 {[%emt 0:08:42]} Kf8 {[%emt 0:03:22]} 11. Qg5 {[%emt 0:04:02]} Be7 {[%emt 0:01:16]} 12. Qg3 {[%emt 0:02:25]} Bb7 {[%emt 0:02:31]} 13. O-O {[%emt 0:03:16]} h5 {[%emt 0:05:22]} 14. Bd4 {[%emt 0:10:11]} Nf6 {[%emt 0:02:31]} 15. e5 {[%emt 0:02:44]} Nd5 {[%emt 0:04:16]} 16. h3 {[%emt 0:04:56]} f5 {[%emt 0:16:08]} 17. exf6 {[%emt 0:03:38]} gxf6 {[%emt 0:04:16]} 18. f3 {[%emt 0:02:18]} Rg8 {[%emt 0:08:25]} 19. Qh4 {[%emt 0:07:14]} e5 {[%emt 0:12:31]} 20. Nxd5 {[%emt 0:06:07]} Qxd5 {[%emt 0:00:06]} 21. Be3 {[%emt 0:02:37]} Qf7 {[%emt 0:01:48]} 22. Qf2 {[%emt 0:02:13]} f5 {[%emt 0:02:00]} 23. Bh6+ {[%emt 0:03:17]} Ke8 {[%emt 0:00:03]} 24. Bd2 {[%emt 0:00:28]} h4 {[%emt 0:03:53]} 25. Bb4 {[%emt 0:01:36]} d6 {[%emt 0:00:39]} 26. Rad1 {[%emt 0:05:00]} Qg6 {[%emt 0:00:51]} 27. Rd2 {[%emt 0:02:22]} Rd8 {[%emt 0:05:37]} 28. c4 {[%emt 0:01:49]} e4 {[%emt 0:01:50]} 29. fxe4 {[%emt 0:03:48]} fxe4 {[%emt 0:00:11]} 30. Qb6 {[%emt 0:02:02]} Rd7 {[%emt 0:02:17]} 31. Bc2 {[%emt 0:01:50]} Qe6 {[%emt 0:00:34]} 32. cxb5 {[%emt 0:01:55]} axb5 {[%emt 0:01:44]} 33. Qxb5 {[%emt 0:00:48]} Rg5 {[%emt 0:01:06]} 34. Qe2 {[%emt 0:05:47]} e3 {[%emt 0:00:41]} 35. Ba4 {[%emt 0:00:31]} exd2 {[%emt 0:01:50]} 36. Qxe6 {[%emt 0:00:35]} Rxg2+ {[%emt 0:00:06]} 37. Kh1 {[%emt 0:00:01]} Rg6+ {[%emt 0:00:13]} 38. Kh2 {[%emt 0:00:44]} Rxe6 {[%emt 0:00:06]} 39. Rf2 {[%emt 0:01:07]} Re1 {[%emt 0:01:46]} 0-1

[Event "EIWCC 2018"]
[Site "Vysoke Tatry"]
[Date "2018.04.10"]
[Round "3"]
[White "Nemcova, Karin"]
[Black "Warakomska, Anna"]
[Result "1-0"]
[ECO "B47"]
[WhiteElo "1992"]
[BlackElo "2306"]
[Annotator "NA"]
[PlyCount "101"]
[EventDate "2018.??.??"]
[EventType "swiss"]
[EventCountry "SVK"]
[SourceTitle "playchess.com"]
[Source "ChessBase"]
[SourceQuality "1"]
[TimeControl "40/5400+30:1800+30"]

1. e4 {[%emt 0:00:00]} c5 {[%emt 0:00:24]} 2. Nf3 {[%emt 0:00:00]} e6 {[%emt 0:00:05]} 3. d4 {[%emt 0:00:34]} cxd4 {[%emt 0:00:04]} 4. Nxd4 {[%emt 0:00:12]} Nc6 {[%emt 0:00:04]} 5. Nc3 {[%emt 0:00:18]} Qc7 {[%emt 0:00:04]} 6. f4 {[%emt 0:00:16]} a6 {[%emt 0:03:43]} 7. Nxc6 {[%emt 0:01:32]} Qxc6 {[%emt 0:00:50]} 8. Bd3 {[%emt 0:00:32]} b5 {[%emt 0:02:44]} 9. Qe2 {[%emt 0:01:33]} Be7 {[%emt 0:07:27]} 10. a3 {[%emt 0:04:38]} Bb7 {[%emt 0:01:02]} 11. Bd2 {[%emt 0:01:15]} Rc8 {[%emt 0:05:29]} 12. O-O-O {[%emt 0:05:29]} Nf6 {[%emt 0:07:47]} 13. Kb1 {[%emt 0:07:04]} Qc7 {[%emt 0:11:32]} 14. e5 {[%emt 0:10:25]} Nd5 {[%emt 0:00:41]} 15. Nxd5 {[%emt 0:00:52]} Bxd5 {[%emt 0:00:32]} 16. Rhf1 {[%emt 0:07:19]} O-O {[%emt 0:26:56]} 17. g4 {[%emt 0:08:56]} d6 {[%emt 0:08:08]} 18. Bc3 {[%emt 0:14:49]} Qb7 {[%emt 0:02:48]} 19. f5 {[%emt 0:12:39]} dxe5 {[%emt 0:01:44]} 20. fxe6 {[%emt 0:01:40]} f6 {[%emt 0:00:05]} 21. g5 {[%emt 0:07:27]} e4 {[%emt 0:11:55]} 22. Bxe4 {[%emt 0:00:41]} Bxe4 {[%emt 0:00:03]} 23. Rd7 {[%emt 0:00:06]} Rc7 {[%emt 0:00:18]} 24. Rxc7 {[%emt 0:02:02]} Bxc2+ {[%emt 0:00:03]} 25. Qxc2 {[%emt 0:00:15]} Qxc7 {[%emt 0:00:03]} 26. gxf6 {[%emt 0:00:56]} Bxf6 {[%emt 0:00:12]} 27. Qb3 {[%emt 0:01:13]} Qc4 {[%emt 0:05:19]} 28. Qxc4 {[%emt 0:00:12]} bxc4 {[%emt 0:00:01]} 29. Bb4 {[%emt 0:00:41]} Rb8 {[%emt 0:00:36]} 30. Kc2 {[%emt 0:02:59]} Bxb2 {[%emt 0:03:41]} 31. Kxb2 {[%emt 0:01:22]} a5 {[%emt 0:00:02]} 32. Kc3 {[%emt 0:00:42]} axb4+ {[%emt 0:00:04]} 33. axb4 {[%emt 0:00:07]} Re8 {[%emt 0:01:15]} 34. Re1 {[%emt 0:00:24]} Rc8 {[%emt 0:00:03]} 35. Re4 {[%emt 0:00:55]} Kf8 {[%emt 0:01:12]} 36. Rxc4 {[%emt 0:03:27]} Ra8 {[%emt 0:00:01]} 37. Kd4 {[%emt 0:02:19]} Ra2 {[%emt 0:00:01]} 38. h4 {[%emt 0:00:36]} Ke7 {[%emt 0:00:31]} 39. Kd5 {[%emt 0:00:54]} Rd2+ {[%emt 0:00:22]} 40. Kc6 {[%emt 0:00:00]} Kxe6 {[%emt 0:00:19]} 41. b5 {[%emt 0:00:59]} Rb2 {[%emt 0:00:47]} 42. b6 {[%emt 0:00:27]} g6 {[%emt 0:13:46]} 43. b7 {[%emt 0:01:33]} h6 {[%emt 0:04:35]} 44. Rc5 {[%emt 0:01:39]} Rxb7 {[%emt 0:01:39]} 45. Kxb7 {[%emt 0:00:05]} Kf6 {[%emt 0:00:02]} 46. Kc6 {[%emt 0:00:18]} g5 {[%emt 0:00:13]} 47. hxg5+ {[%emt 0:00:18]} hxg5 {[%emt 0:00:02]} 48. Kd5 {[%emt 0:00:20]} Kf5 {[%emt 0:00:01]} 49. Kd4+ {[%emt 0:00:11]} Kf4 {[%emt 0:00:05]} 50. Kd3 {[%emt 0:00:06]} g4 {[%emt 0:00:12]} 51. Ke2 {[%emt 0:00:13]} 1-0

[Event "EIWCC 2018"]
[Site "Vysoke Tatry"]
[Date "2018.04.10"]
[Round "3"]
[White "Chan, Naruna"]
[Black "Leite Oralova, Catarina"]
[Result "1-0"]
[ECO "B40"]
[WhiteElo "1909"]
[BlackElo "2134"]
[Annotator "NA"]
[PlyCount "69"]
[EventDate "2018.??.??"]
[EventType "swiss"]
[EventCountry "SVK"]
[SourceTitle "playchess.com"]
[Source "ChessBase"]
[SourceQuality "1"]
[TimeControl "40/5400+30:1800+30"]

1. e4 {[%emt 0:00:00]} c5 {[%emt 0:00:06]} 2. Nf3 {[%emt 0:00:00]} e6 {[%emt 0:00:28]} 3. g3 {[%emt 0:00:15]} Nc6 {[%emt 0:01:41]} 4. Bg2 {[%emt 0:01:56]} Nf6 {[%emt 0:03:00]} 5. Nc3 {[%emt 0:04:38]} a6 {[%emt 0:05:35]} 6. O-O {[%emt 0:07:30]} Qc7 {[%emt 0:03:18]} 7. d4 {[%emt 0:08:30]} cxd4 {[%emt 0:00:33]} 8. Nxd4 {[%emt 0:00:05]} Be7 {[%emt 0:02:25]} 9. Nf3 {[%emt 0:07:40]} d6 {[%emt 0:08:30]} 10. Qe2 {[%emt 0:07:47]} O-O {[%emt 0:06:03]} 11. Bg5 {[%emt 0:03:39]} h6 {[%emt 0:05:42]} 12. Be3 {[%emt 0:07:45]} Nd7 {[%emt 0:15:37]} 13. Rad1 {[%emt 0:07:36]} b5 {[%emt 0:08:29]} 14. a3 {[%emt 0:06:31]} Bb7 {[%emt 0:03:22]} 15. Nd4 {[%emt 0:07:43]} Na5 {[%emt 0:03:35]} 16. Nb1 {[%emt 0:03:20]} Rac8 {[%emt 0:04:45]} 17. c3 {[%emt 0:01:17]} Nc4 {[%emt 0:03:26]} 18. Bc1 {[%emt 0:00:59]} Rfd8 {[%emt 0:05:21]} 19. f4 {[%emt 0:03:17]} Bf6 {[%emt 0:02:49]} 20. Kh1 {[%emt 0:01:41]} Na5 {[%emt 0:04:15]} 21. g4 {[%emt 0:04:46]} Bxd4 {[%emt 0:03:34]} 22. Rxd4 {[%emt 0:01:00]} Nb3 {[%emt 0:00:02]} 23. Rdd1 {[%emt 0:04:48]} Nxc1 {[%emt 0:00:19]} 24. Rxc1 {[%emt 0:00:01]} Qc5 {[%emt 0:02:55]} 25. Nd2 {[%emt 0:00:39]} e5 {[%emt 0:01:59]} 26. g5 {[%emt 0:02:24]} hxg5 {[%emt 0:02:53]} 27. fxg5 {[%emt 0:00:07]} Nf8 {[%emt 0:00:51]} 28. b4 {[%emt 0:04:23]} Qc7 {[%emt 0:01:19]} 29. Rf3 {[%emt 0:01:25]} Qe7 {[%emt 0:00:23]} 30. Rcf1 {[%emt 0:00:37]} Qxg5 {[%emt 0:00:44]} 31. Rxf7 {[%emt 0:00:21]} Rd7 {[%emt 0:00:02]} 32. Qf2 {[%emt 0:00:24]} Qd8 {[%emt 0:01:50]} 33. Bh3 {[%emt 0:00:31]} Rxf7 {[%emt 0:00:29]} 34. Qxf7+ {[%emt 0:00:02]} Kh8 {[%emt 0:00:09]} 35. Bxc8 {[%emt 0:00:32]} 1-0

[Event "EIWCC 2018"]
[Site "Vysoke Tatry"]
[Date "2018.04.10"]
[Round "3"]
[White "Nadzamova, Viktoria"]
[Black "Antolak, Julia"]
[Result "0-1"]
[ECO "B31"]
[WhiteElo "1766"]
[BlackElo "2212"]
[Annotator "NA"]
[PlyCount "98"]
[EventDate "2018.??.??"]
[EventType "swiss"]
[EventCountry "SVK"]
[SourceTitle "playchess.com"]
[Source "ChessBase"]
[SourceQuality "1"]
[TimeControl "40/5400+30:1800+30"]

1. e4 {[%emt 0:00:00]} c5 {[%emt 0:00:05]} 2. Nf3 {[%emt 0:00:00]} Nc6 {[%emt 0:00:04]} 3. Bb5 {[%emt 0:00:00]} g6 {[%emt 0:04:15]} 4. O-O {[%emt 0:00:13]} Bg7 {[%emt 0:00:26]} 5. Re1 {[%emt 0:01:29]} Nf6 {[%emt 0:03:19]} 6. c3 {[%emt 0:03:16]} O-O {[%emt 0:02:33]} 7. d4 {[%emt 0:02:06]} cxd4 {[%emt 0:02:12]} 8. cxd4 {[%emt 0:00:10]} d6 {[%emt 0:02:48]} 9. h3 {[%emt 0:02:54]} a6 {[%emt 0:01:47]} 10. Bf1 {[%emt 0:00:59]} d5 {[%emt 0:05:15]} 11. e5 {[%emt 0:02:27]} Ne8 {[%emt 0:00:52]} 12. Nc3 {[%emt 0:11:57]} e6 {[%emt 0:05:19]} 13. Nh2 {[%emt 0:10:39]} Qb6 {[%emt 0:06:39]} 14. Ne2 {[%emt 0:00:46]} f6 {[%emt 0:00:22]} 15. exf6 {[%emt 0:10:11]} Nxf6 {[%emt 0:01:39]} 16. b3 {[%emt 0:07:18]} Ne4 {[%emt 0:02:27]} 17. Be3 {[%emt 0:00:38]} Nd6 {[%emt 0:05:49]} 18. Qd2 {[%emt 0:18:19]} Bd7 {[%emt 0:01:04]} 19. g4 {[%emt 0:01:54]} Rf7 {[%emt 0:04:37]} 20. Bg2 {[%emt 0:02:42]} Nb5 {[%emt 0:06:11]} 21. Rad1 {[%emt 0:00:38]} Bf8 {[%emt 0:00:47]} 22. Qc2 {[%emt 0:01:47]} Rc8 {[%emt 0:03:49]} 23. Qb1 {[%emt 0:01:32]} Nb4 {[%emt 0:05:05]} 24. Rd2 {[%emt 0:01:09]} Na3 {[%emt 0:04:27]} 25. Qb2 {[%emt 0:01:26]} Bb5 {[%emt 0:09:33]} 26. Red1 {[%emt 0:05:50]} Qa5 {[%emt 0:03:49]} 27. Nf4 {[%emt 0:03:32]} Rc6 {[%emt 0:02:05]} 28. Rc1 {[%emt 0:01:45]} Rfc7 {[%emt 0:06:52]} 29. Rxc6 {[%emt 0:00:14]} Rxc6 {[%emt 0:00:04]} 30. Nf3 {[%emt 0:01:13]} Bd6 {[%emt 0:04:33]} 31. Bf1 {[%emt 0:03:05]} Bxf1 {[%emt 0:03:02]} 32. Kxf1 {[%emt 0:00:09]} Qb5+ {[%emt 0:01:55]} 33. Kg2 {[%emt 0:00:28]} Nbc2 {[%emt 0:00:25]} 34. Nd3 {[%emt 0:01:11]} Bb4 {[%emt 0:01:31]} 35. Nxb4 {[%emt 0:01:43]} Qxb4 {[%emt 0:00:04]} 36. Ne5 {[%emt 0:00:11]} Rc3 {[%emt 0:00:59]} 37. Nd3 {[%emt 0:00:53]} Rxd3 {[%emt 0:00:10]} 38. Rxc2 {[%emt 0:01:43]} Nxc2 {[%emt 0:00:06]} 39. Qxc2 {[%emt 0:00:04]} Qc3 {[%emt 0:00:06]} 40. Qe2 {[%emt 0:00:00]} e5 {[%emt 0:02:21]} 41. Qf3 {[%emt 0:03:06]} Qc6 {[%emt 0:03:21]} 42. dxe5 {[%emt 0:02:18]} d4 {[%emt 0:03:10]} 43. Qxc6 {[%emt 0:00:12]} bxc6 {[%emt 0:00:04]} 44. Bc1 {[%emt 0:00:46]} Kf7 {[%emt 0:00:30]} 45. h4 {[%emt 0:01:51]} Ke6 {[%emt 0:01:04]} 46. f4 {[%emt 0:00:11]} h5 {[%emt 0:01:39]} 47. g5 {[%emt 0:05:27]} Kf5 {[%emt 0:00:22]} 48. b4 {[%emt 0:00:39]} Rd1 {[%emt 0:00:32]} 49. Bb2 {[%emt 0:00:41]} Rd2+ {[%emt 0:00:06]} 0-1